fUSD/lending_fUSD_20241112
["ID","MTS","AMOUNT","RATE_DAILY","PERIOD"]
[342099995,1731441047317,-7124.02110162,0.00012502,2]
[342100741,1731441073907,150.0,0.00011736,2]
[342100742,1731441085275,7151.77790196,0.00012302,2]
[342100743,1731441089267,562.4397,0.0001228,2]
[342100744,1731441099834,1018.4223,0.0001228,2]
[342100745,1731441138717,167.0,0.0001204,2]
[342100746,1731441149482,4771.06368225,0.00012302,2]
[342100747,1731441155259,167.0,0.00011839,2]
[342100748,1731441163231,167.0,0.00012154,2]
[342100749,1731441168728,167.0,0.0001225,2]
[342100750,1731441173912,167.0,0.00012311,2]
[342100751,1731441184349,167.0,0.00012307,2]
[342100752,1731441190993,250.0,0.00011679,2]
[342100753,1731441216934,710.47656,0.000119,2]
[342100754,1731441226172,987.32,9.762e-05,2]
[342100755,1731441226536,987.32,0.00012026,2]
[342100756,1731441226866,2286.05273902,0.00012302,2]
[342100757,1731441264494,421.92,0.000117,2]
[342100758,1731441264617,421.92,0.00012285,2]
[342100759,1731441311540,166.69,0.00011628,2]
[342100760,1731441317767,21813.95,0.00011628,2]
[342100762,1731441351528,1000.0,0.00011628,2]
[342100763,1731441406905,250.0,0.00011621,2]
[342100764,1731441497297,454.12,0.00011619,2]
[342100765,1731441504023,329.01,0.00011619,2]
[342100766,1731441643900,1680.0,0.000123,2]
[342100767,1731441664848,304.32,0.00011613,2]
[342100768,1731441665076,304.32,0.00011616,2]
[342100769,1731441665328,304.32,0.00011619,2]
[342100770,1731441665612,304.32,0.00011622,2]
[342100771,1731441665837,304.32,0.00011625,2]
[342100772,1731441666073,304.32,0.00011628,2]
[342100773,1731441666279,304.32,0.00011631,2]
[342100774,1731441666488,304.32,0.00011634,2]
[342100775,1731441666707,304.32,0.00011637,2]
[342100776,1731441667003,304.32,0.0001164,2]
[342100777,1731441667226,304.32,0.00011644,2]
[342100778,1731441667788,304.32,0.00011647,2]
[342100779,1731441668188,304.32,0.0001165,2]
[342100780,1731441668347,304.32,0.00011653,2]
[342100781,1731441668626,304.32,0.00011656,2]
[342100782,1731441668773,304.32,0.00011659,2]
[342100783,1731441668988,304.32,0.00011662,2]
[342100784,1731441669147,304.32,0.00011665,2]
[342100785,1731441669345,304.32,0.00011668,2]
[342100786,1731441669584,304.32,0.00011671,2]
[342100787,1731441688755,1000.0,0.000123,2]
[342100788,1731441692773,160.611242,0.000159,10]
[342100789,1731441848568,167.0,0.00011966,2]
[342100790,1731441859406,1450.0,0.00012,2]
[342100791,1731442013755,659.5574,0.00012302,2]
[342100792,1731442018079,250.0,0.00011603,2]
[342100793,1731442028407,1000.0,0.00011603,2]
[342100795,1731442067525,888.58,9.685e-05,2]
[342100796,1731442067740,888.58,0.00011949,2]
[342100797,1731442084153,250.0,0.00011603,2]
[342100798,1731442121679,253.15,0.00011611,2]
[342100799,1731442121898,253.15,0.00012191,2]
[342100806,1731442198559,166.67,0.00011503,2]
[342100815,1731442231719,-167.0,0.00012361,2]
[342100816,1731442231729,-198.19994533,0.0001238,2]
[342100817,1731442231773,-2801.80005467,0.0001238,2]
[342100818,1731442231782,-300.0,0.00012391,2]
[342100819,1731442231792,-5700.54920871,0.00012392,2]
[342100820,1731442231828,-2321.82179632,0.00012392,2]
[342100821,1731442231964,-35.70756957,0.00012392,2]
[342100822,1731442231974,-3165.44260426,0.000124,2]
[342100823,1731442231984,-3165.44260422,0.000124,2]
[342100825,1731442231994,-3165.44260422,0.000124,2]
[342100827,1731442232003,-3165.44260422,0.00012401,2]
[342100829,1731442232013,-3165.44260422,0.00012401,2]
[342100831,1731442232022,-299.99,0.00012401,2]
[342100833,1731442232031,-150.0,0.00012401,2]
[342100835,1731442232041,-3165.44260422,0.00012401,2]
[342100837,1731442232050,-3165.44260422,0.00012401,2]
[342100839,1731442232059,-3165.44260422,0.00012402,2]
[342100841,1731442232068,-3165.44260422,0.00012402,2]
[342100843,1731442232077,-5823.9661,0.00012402,2]
[342100845,1731442232085,-41138.7002,0.00012402,2]
[342100847,1731442232094,-1409.5851,0.00012402,2]
[342100849,1731442232103,-163.21837348,0.00012402,2]
[342100851,1731442232112,-165.60200626,0.00012402,2]
[342100853,1731442232122,-3165.44260422,0.00012402,2]
[342100855,1731442232131,-71486.2507705,0.00012402,2]
[342100856,1731442232143,-916.39176847,0.00012402,2]
[342100858,1731442232152,-1630.542,0.00012404,2]
[342100860,1731442232161,-6589.3,0.00012404,2]
[342100862,1731442232171,-2574.000949,0.00012491,2]
[342100864,1731442232180,-3136.0644157,0.00012491,2]
[342100866,1731442232190,-3580.45,0.00012491,2]
[342100867,1731442232199,-284.23839034,0.00012492,2]
[342100868,1731442232209,-824687.34867473,0.00012497,2]
[342100869,1731442232220,-282609.26241624,0.00012497,2]
[342100870,1731442232229,-1000.0,0.000125,2]
[342100872,1731442232238,-1000.0,0.000125,3]
[342100874,1731442232248,-1000.0,0.000125,3]
[342100876,1731442232257,-1000.0,0.000125,2]
[342100877,1731442232266,-1000.0,0.000125,2]
[342100879,1731442232276,-1000.0,0.000125,3]
[342100881,1731442232285,-1000.0,0.000125,2]
[342100883,1731442232295,-1000.0,0.000125,3]
[342100885,1731442232304,-1000.0,0.000125,2]
[342100888,1731442232314,-1000.0,0.000125,2]
[342100890,1731442232324,-1000.0,0.000125,3]
[342100892,1731442232333,-1000.0,0.000125,2]
[342100894,1731442232342,-1000.0,0.000125,2]
[342100895,1731442232352,-1000.0,0.000125,2]
[342100897,1731442232361,-1003.0,0.000125,2]
[342100900,1731442232370,-1000.0,0.000125,3]
[342100902,1731442232380,-8496.71879313,0.000125,2]
[342100903,1731442232389,-1000.0,0.000125,2]
[342100905,1731442232398,-335.28,0.000125,2]
[342100908,1731442232408,-250.0,0.000125,2]
[342100909,1731442232417,-250.0,0.000125,2]
[342100912,1731442232429,-250.0,0.000125,2]
[342100914,1731442232439,-250.0,0.000125,2]
[342100916,1731442232449,-375.4,0.000125,2]
[342100918,1731442232459,-450.0,0.00012501,2]
[342100920,1731442232468,-651.18628304,0.00012501,2]
[342100922,1731442232477,-1375.0,0.00012501,2]
[342100924,1731442232487,-6300.4122874,0.00012502,2]
[342100926,1731442232496,-291845.19360697,0.00012502,2]
[342100928,1731442232508,-33535.03014202,0.00012502,2]
[342100930,1731442232520,-5755.95,0.00012502,2]
[342101160,1731442237661,-952.91,0.00012502,2]
[342101161,1731442237673,-2297.6088939,0.00012502,2]
[342101162,1731442237742,-15049.64211277,0.00012502,2]
[342101163,1731442237883,-3529.91696682,0.00012502,2]
[342101164,1731442237896,-2041.83709369,0.00012502,2]
[342101165,1731442237907,-2160.3682046,0.00012502,2]
[342101166,1731442237918,-4917.08042582,0.00012502,2]
[342101167,1731442237929,-44398.62320001,0.00012502,2]
[342101168,1731442237997,-82197.550243,0.00012502,2]
[342101302,1731442239374,436.7,0.00011832,2]
[342101332,1731442239628,-488.38971228,0.00012501,2]
[342101334,1731442239638,-4730.62146356,0.00012502,2]
[342101336,1731442239654,-11566.45661789,0.00012502,2]
[342101338,1731442239666,-1832.01084924,0.00012502,2]
[342101344,1731442239704,-848.73550941,0.00012502,2]
[342101351,1731442239766,-760.6367351,0.00012502,2]
[342101360,1731442239839,-442.3756,0.00012502,2]
[342101362,1731442239850,-1432.836,0.00012502,2]
[342101654,1731442242629,-1204.58194236,0.00012502,2]
[342101658,1731442242641,-1998.0,0.00012502,2]
[342101667,1731442242683,-2199.42817209,0.00012502,2]
[342101682,1731442242793,-8883.10080002,0.00012502,2]
[342101690,1731442242858,-44522.61282633,0.00012502,2]
[342101696,1731442242904,-3387.15102063,0.00012502,2]
[342101698,1731442242916,-3623.01499409,0.00012502,2]
[342101705,1731442242969,-199802.76399526,0.00012502,2]
[342101707,1731442242979,-90741.2679516,0.00012502,2]
[342101906,1731442245865,-705.24000472,0.00012502,2]
[342101907,1731442245882,-48201.35616,0.00012502,2]
[342101908,1731442245963,-803.604,0.00012502,2]
[342101909,1731442245975,-7684.3,0.00012502,2]
[342101910,1731442246020,-87868.65892671,0.00012502,2]
[342101911,1731442246030,-4725.30921555,0.00012502,2]
[342101912,1731442246040,-85386.03185774,0.00012502,2]
[342101913,1731442246051,-3115.5805136,0.00012502,2]
[342101914,1731442246082,-516.37,0.00012502,2]
[342101915,1731442246094,-610.54517073,0.00012502,2]
[342101916,1731442263956,2236.36,0.0001181,2]
[342101917,1731442264512,216.5799,0.00012302,2]
[342101918,1731442293177,261.43679348,0.00012302,2]
[342101919,1731442355438,253.56684613,0.0001224,2]
[342101920,1731442369384,390.06,0.00011738,2]
[342101921,1731442473517,159.58,0.00011632,2]
[342101922,1731442493228,2049.73,0.00011632,2]
[342101923,1731442570884,2000.0,0.00011651,2]
[342101924,1731442600664,-755.2,0.00012329,2]
[342101925,1731442600687,-3000.0,0.0001238,2]
[342101926,1731442600709,-569.7792,0.00012391,2]
[342101927,1731442600730,-150.0,0.00012401,2]
[342101928,1731442600752,-300.0,0.00012401,2]
[342101929,1731442600774,-487.3464,0.00012402,2]
[342101930,1731442600795,-3843.8233,0.00012402,2]
[342101931,1731442600816,-1445.829,0.00012402,2]
[342101932,1731442600839,-7312.5262,0.00012402,2]
[342101933,1731442600860,-1275.21,0.00012402,2]
[342101934,1731442600882,-1000.0,0.00012402,2]
[342101935,1731442600908,-338.00757354,0.00012402,2]
[342101936,1731442600930,-163.21837346,0.00012402,2]
[342101937,1731442600952,-228.58717885,0.00012402,2]
[342101938,1731442600973,-5873.5289633,0.00012491,2]
[342101939,1731442600994,-6091.1846907,0.00012491,2]
[342101940,1731442601014,-508.13870844,0.00012493,2]
[342101941,1731442601036,-669.572725,0.00012493,2]
[342101942,1731442601057,-4988.04768671,0.00012497,2]
[342101943,1731442666653,167.0,0.00012014,2]
[342101944,1731442679886,348.95,0.0001157,2]
[342101945,1731442696389,23900.0,0.00011554,2]
[342101946,1731442722578,1000.0,0.00011554,2]
[342101947,1731442799805,250.0,0.00011554,2]
[342101948,1731442802825,183.24,0.00011554,2]
[342101949,1731442803108,183.24,0.00012132,2]
[342101950,1731442838143,250.0,0.00011577,2]
[342101953,1731442905031,218.36,0.00011577,2]
[342101954,1731442908482,164.05,0.00011577,2]
[342101955,1731442968691,872.88,9.598e-05,2]
[342101956,1731442969206,872.88,0.00011862,2]
[342101957,1731442987741,167.0,0.00012024,2]
[342101958,1731442999203,167.0,0.00012165,2]
[342101959,1731443001999,167.0,0.00012283,2]
[342101960,1731443036383,167.0,0.00012307,2]
[342101961,1731443059495,195.03,0.00011561,2]
[342101962,1731443077330,167.0,0.00012303,2]
[342101968,1731443230122,-300.0,0.00012379,2]
[342101969,1731443230146,-150.0,0.00012379,2]
[342101970,1731443230169,-3000.0,0.0001238,2]
[342101971,1731443230192,-68666.92063704,0.0001238,2]
[342101972,1731443232200,174.18524853,0.000163,120]
[342101974,1731443293789,1000.0,0.000123,2]
[342101981,1731443360536,-56475.39358068,0.0001238,2]
[342101982,1731443360559,-23524.60641932,0.000124,2]
[342101999,1731443394206,167.0,0.00011908,2]
[342102000,1731443394670,167.0,0.00012301,2]
[342102002,1731443414394,1000.0,0.00011543,2]
[342102003,1731443426329,167.0,0.00012165,2]
[342102004,1731443429628,167.0,0.00012094,2]
[342102005,1731443431580,167.0,0.00012024,2]
[342102009,1731443432016,-300.0,0.00012399,2]
[342102010,1731443432026,-150.0,0.00012399,2]
[342102011,1731443432035,-45.72833055,0.000124,2]
[342102012,1731443432046,-55070.99716186,0.000124,2]
[342102013,1731443432058,-397.79058894,0.000124,2]
[342102014,1731443432069,-591.92852923,0.000124,2]
[342102015,1731443432080,-1695.501234,0.000124,2]
[342102016,1731443432100,-5425.11009586,0.000124,2]
[342102019,1731443432163,-734.52764024,0.000124,2]
[342102020,1731443432174,-1867.0,0.000124,2]
[342102021,1731443432183,-3003.68585336,0.00012401,2]
[342102022,1731443432195,-2465.03504664,0.00012401,2]
[342102023,1731443432204,-148.16307336,0.00012401,2]
[342102025,1731443432214,-1342.42776,0.00012401,2]
[342102026,1731443432225,-1300.0,0.00012401,2]
[342102027,1731443432236,-3088.7376355,0.00012401,2]
[342102028,1731443432246,-15205.15467348,0.00012401,2]
[342102029,1731443432264,-332.17124173,0.00012401,2]
[342102030,1731443432284,-1866.47148544,0.00012401,2]
[342102031,1731443432295,-2028.08171942,0.00012401,2]
[342102032,1731443432355,-7136.22251107,0.00012401,2]
[342102033,1731443432364,-11013.9759,0.00012401,2]
[342102034,1731443432373,-1609.841,0.00012401,2]
[342102035,1731443432382,-725.81185327,0.00012401,2]
[342102036,1731443432392,-163.21837346,0.00012401,2]
[342102037,1731443432401,-171.97071077,0.00012401,2]
[342102038,1731443432410,-725.81185323,0.00012401,2]
[342102039,1731443432419,-725.81185323,0.00012401,2]
[342102040,1731443432428,-725.81185323,0.00012401,2]
[342102041,1731443432437,-725.81185323,0.00012401,2]
[342102042,1731443432448,-299.99,0.00012402,2]
[342102043,1731443432458,-725.81185323,0.00012402,2]
[342102044,1731443432469,-162.11,0.00012402,2]
[342102045,1731443432478,-725.81185323,0.00012402,2]
[342102046,1731443432488,-725.81185323,0.00012402,2]
[342102047,1731443432499,-725.81185323,0.00012402,2]
[342102048,1731443432511,-725.81185323,0.00012402,2]
[342102049,1731443432520,-4977.1733952,0.00012491,2]
[342102050,1731443432529,-230.5983949,0.00012491,2]
[342102051,1731443432538,-4011.8323836,0.00012491,2]
[342102052,1731443432547,-14987.41872618,0.00012497,2]
[342102053,1731443432556,-15008.01751794,0.00012497,2]
[342102054,1731443432565,-220.38492653,0.000125,2]
[342102055,1731443432575,-436.78128791,0.000125,2]
[342102056,1731443432584,-506.15542383,0.000125,2]
[342102057,1731443432596,-506.15542383,0.000125,2]
[342102058,1731443432605,-506.15542383,0.000125,2]
[342102059,1731443432615,-506.15542383,0.000125,2]
[342102060,1731443432624,-506.15542383,0.000125,2]
[342102061,1731443432633,-506.15542383,0.000125,2]
[342102062,1731443432642,-506.15542383,0.000125,2]
[342102063,1731443432651,-506.15542383,0.000125,2]
[342102064,1731443432660,-506.15542383,0.000125,2]
[342102065,1731443432670,-506.15542383,0.000125,2]
[342102066,1731443432679,-506.15542383,0.000125,2]
[342102067,1731443432689,-506.15542383,0.000125,2]
[342102068,1731443432700,-531.46319502,0.000125,2]
[342102069,1731443432709,-531.46319502,0.000125,2]
[342102070,1731443432718,-531.46319502,0.000125,2]
[342102071,1731443432728,-531.46319502,0.000125,2]
[342102072,1731443432737,-531.46319502,0.000125,2]
[342102073,1731443432746,-531.46319502,0.000125,2]
[342102074,1731443432757,-531.46319502,0.000125,2]
[342102075,1731443432766,-531.46319502,0.000125,2]
[342102076,1731443432775,-787.75583401,0.000125,2]
[342102077,1731443432785,-29394.49460934,0.000125,2]
[342102078,1731443432794,-4569.99999901,0.000125,2]
[342102079,1731443432803,-311416.26544181,0.00012501,2]
[342102080,1731443432816,-59862.24706306,0.00012501,2]
[342102081,1731443433142,369.26,0.00010959,2]
[342102082,1731443434161,167.0,0.00012307,2]
[342102084,1731443437895,-171.97071076,0.00012401,2]
[342102085,1731443437905,-183.08656322,0.00012491,2]
[342102086,1731443437915,-183.08656322,0.00012491,2]
[342102087,1731443437926,-177798.85616279,0.00012501,2]
[342102088,1731443437938,-3353.94450525,0.00012501,2]
[342102089,1731443438000,-1380.94,0.00012501,2]
[342102090,1731443438014,-1433.78,0.00012501,2]
[342102091,1731443438065,-1154.39942,0.00012501,2]
[342102092,1731443438101,-4735.87429009,0.00012501,2]
[342102093,1731443438114,-119803.17846824,0.00012501,2]
[342102094,1731443438124,-8124.02195739,0.00012501,2]
[342102095,1731443438133,-366.29228421,0.00012501,2]
[342102096,1731443438143,-14328.09452382,0.00012501,2]
[342102121,1731443439181,-280.75704129,0.00012501,2]
[342102122,1731443439193,-357.42178166,0.00012501,2]
[342102123,1731443439204,-3035.35101681,0.00012501,2]
[342102124,1731443439323,-3043.97560936,0.00012501,2]
[342102188,1731443440652,-570.1696,0.00012501,2]
[342102195,1731443440703,-856.80639388,0.00012501,2]
[342102197,1731443440714,-981.88,0.00012501,2]
[342102199,1731443440725,-355.41700342,0.00012501,2]
[342102201,1731443440736,-1793.68742071,0.00012501,2]
[342102209,1731443440809,-898.30318555,0.00012501,2]
[342102210,1731443440841,-171.97071076,0.00012402,2]
[342102211,1731443440850,-328.02928924,0.00012501,2]
[342102212,1731443440861,-1139.22878096,0.00012501,2]
[342102213,1731443440873,-952.47687904,0.00012501,2]
[342102214,1731443440884,-11442.45491115,0.00012501,2]
[342102219,1731443440964,-413327.51835958,0.00012501,2]
[342102222,1731443440976,-6641.29122611,0.00012501,2]
[342102224,1731443440986,-496.07624443,0.00012501,2]
[342102226,1731443440997,-642.97607776,0.00012501,2]
[342102228,1731443441008,-5361.8420521,0.00012501,2]
[342102283,1731443443234,-13182.01732245,0.00012501,2]
[342102284,1731443443245,-33266.78835874,0.00012501,2]
[342102285,1731443443256,-4344.28957067,0.00012501,2]
[342102287,1731443443273,-7272.55442,0.00012501,2]
[342102290,1731443443296,-45782.05783609,0.00012501,2]
[342102291,1731443443308,-885.50510107,0.00012501,2]
[342102292,1731443443319,-470.25616082,0.00012501,2]
[342102293,1731443443370,-1269.628188,0.00012501,2]
[342102294,1731443443381,-69168.25916464,0.00012501,2]
[342102295,1731443443656,-2672.67,0.00012501,2]
[342102296,1731443443668,-1258.95782212,0.00012501,2]
[342102297,1731443443679,-76826.3852096,0.00012501,2]
[342102298,1731443443691,-4540.0,0.00012501,2]
[342102299,1731443443702,-17879.03102745,0.00012501,2]
[342102303,1731443446085,-185.93854237,0.00012401,2]
[342102304,1731443446095,-171.97071076,0.00012402,2]
[342102305,1731443446107,-17097.86179115,0.00012501,2]
[342102306,1731443446119,-1132.87992,0.00012501,2]
[342102307,1731443446131,-1526.45862146,0.00012501,2]
[342102308,1731443446143,-659.77209503,0.00012501,2]
[342102309,1731443446154,-597.50039743,0.00012501,2]
[342102310,1731443446165,-6417.7600647,0.00012501,2]
[342102311,1731443446177,-781.17415626,0.00012501,2]
[342102312,1731443446222,-128814.6071489,0.00012501,2]
[342102313,1731443446234,-33231.33035784,0.00012501,2]
[342102314,1731443446246,-1657.21148328,0.00012501,2]
[342102315,1731443446257,-1665.7501541,0.00012501,2]
[342102316,1731443446297,-379.71008372,0.00012501,2]
[342102317,1731443446308,-1104.89183922,0.00012501,2]
[342102318,1731443446319,-26914.48723977,0.00012501,2]
[342102319,1731443446331,-498.74334112,0.00012501,2]
[342102320,1731443446343,-682.59221191,0.00012501,2]
[342102322,1731443501451,158.513,0.00011,2]
[342102323,1731443506328,250.0,0.00011784,2]
[342102327,1731443557239,185.08,0.00011711,2]
[342102328,1731443629529,406.96,0.00011654,2]
[342102332,1731443693831,1450.0,0.00012,2]
[342102333,1731443710115,250.0,0.00011631,2]
[342102334,1731443722729,4477.56,0.00011631,2]
[342102335,1731443825857,166.67,0.00011644,2]
[342102336,1731443854085,867.82,9.726e-05,2]
[342102337,1731443855657,867.82,0.0001199,2]
[342102338,1731443874553,766.33,0.00011646,2]
[342102339,1731443899785,200.0,0.00011644,2]
[342102340,1731443987535,195.03,0.00011648,2]
[342102344,1731444064452,1500.0,0.00012275,2]
[342102345,1731444121942,150.0,0.00012238,2]
[342102346,1731444121993,150.0,0.00012297,2]
[342102347,1731444122042,150.0,0.00012254,2]
[342102348,1731444127849,167.0,0.00011888,2]
[342102349,1731444128256,167.0,0.0001228,2]
[342102350,1731444182052,150.0,0.00012273,2]
[342102351,1731444182384,150.0,0.00012229,2]
[342102352,1731444182450,150.0,0.00012305,2]
[342102353,1731444182518,150.0,0.00012269,2]
[342102354,1731444182626,150.0,0.0001229,2]
[342102355,1731444182950,150.0,0.00012269,2]
[342102356,1731444183032,150.0,0.00012283,2]
[342102357,1731444183130,150.0,0.00012236,2]
[342102358,1731444183190,150.0,0.00012263,2]
[342102359,1731444183331,150.0,0.00012286,2]
[342102360,1731444184433,150.0,0.00012271,2]
[342102361,1731444184511,150.0,0.00012237,2]
[342102362,1731444184780,150.0,0.00012248,2]
[342102363,1731444184937,150.0,0.00012254,2]
[342102364,1731444185149,150.0,0.00012305,2]
[342102365,1731444235283,250.0,0.00011435,2]
[342102366,1731444239376,637.56,0.00010959,2]
[342102367,1731444244461,150.0,0.00012236,2]
[342102368,1731444244655,150.0,0.00012287,2]
[342102369,1731444293449,1000.0,0.00011432,2]
[342102371,1731444347703,-150.0,0.00012315,2]
[342102372,1731444347724,-150.0,0.00012328,2]
[342102373,1731444347754,-150.0,0.00012328,2]
[342102374,1731444347774,-604.16,0.00012329,2]
[342102375,1731444347801,-150.0,0.00012329,2]
[342102376,1731444347823,-150.0,0.00012335,2]
[342102377,1731444347845,-150.0,0.00012346,2]
[342102378,1731444347865,-150.0,0.00012346,2]
[342102379,1731444347888,-150.0,0.0001235,2]
[342102380,1731444347910,-150.0,0.00012352,2]
[342102381,1731444347933,-150.0,0.00012356,2]
[342102382,1731444347955,-150.0,0.00012358,2]
[342102383,1731444347979,-150.0,0.00012365,2]
[342102384,1731444348011,-150.0,0.00012368,2]
[342102385,1731444348034,-150.0,0.00012375,2]
[342102386,1731444348056,-150.0,0.00012378,2]
[342102387,1731444348077,-150.0,0.00012379,2]
[342102388,1731444348100,-300.0,0.00012379,2]
[342102389,1731444348120,-37697.29940274,0.0001238,2]
[342102390,1731444348140,-3000.0,0.0001238,2]
[342102391,1731444348162,-150.0,0.00012386,2]
[342102392,1731444348185,-150.0,0.00012391,2]
[342102393,1731444348206,-150.0,0.00012395,2]
[342102394,1731444348228,-543.30559621,0.000124,2]
[342102395,1731444423347,1500.0,0.0001225,2]
[342102396,1731444438137,250.0,0.00011515,2]
[342102397,1731444444702,-300.0,0.00012399,2]
[342102398,1731444444724,-3916.14360379,0.000124,2]
[342102399,1731444444745,-26346.2903,0.000124,2]
[342102400,1731444444772,-1559.577,0.000124,2]
[342102401,1731444444793,-14810.1256,0.00012401,2]
[342102402,1731444444814,-441.6538,0.00012401,2]
[342102403,1731444444840,-171.8289,0.00012401,2]
[342102404,1731444444863,-215.09388483,0.00012401,2]
[342102405,1731444444885,-191.47020248,0.00012401,2]
[342102406,1731444444906,-163.21837346,0.00012401,2]
[342102407,1731444444926,-171.8289,0.00012401,2]
[342102408,1731444444947,-171.8289,0.00012402,2]
[342102409,1731444444969,-171.8289,0.00012402,2]
[342102410,1731444444990,-215.09388483,0.00012402,2]
[342102411,1731444445012,-191.47020248,0.00012402,2]
[342102412,1731444445033,-150.0,0.00012403,2]
[342102413,1731444445056,-150.0,0.00012434,2]
[342102414,1731444445079,-150.0,0.00012434,2]
[342102415,1731444445101,-150.0,0.00012445,2]
[342102416,1731444445123,-150.0,0.00012446,2]
[342102417,1731444445145,-150.0,0.00012448,2]
[342102418,1731444445166,-150.0,0.00012451,2]
[342102419,1731444445188,-150.0,0.00012458,2]
[342102420,1731444445209,-1500.0,0.0001246,2]
[342102421,1731444445231,-150.0,0.00012465,2]
[342102422,1731444445252,-150.0,0.0001248,2]
[342102423,1731444445274,-150.0,0.0001248,2]
[342102424,1731444445294,-175.28502878,0.00012491,2]
[342102425,1731444445316,-192.1653291,0.00012491,2]
[342102426,1731444445336,-3937.1359053,0.00012491,2]
[342102427,1731444445357,-1144.0586787,0.00012491,2]
[342102428,1731444445377,-1869.6689063,0.00012491,2]
[342102429,1731444445397,-185.08,0.00012492,2]
[342102430,1731444445420,-299.99,0.00012492,2]
[342102431,1731444445442,-150.0,0.00012494,2]
[342102432,1731444445465,-150.0,0.00012497,2]
[342102433,1731444445486,-426.33039564,0.000125,2]
[342102434,1731444445509,-500.0,0.000125,2]
[342102435,1731444445530,-330.86869031,0.000125,2]
[342102436,1731444445553,-500.0,0.000125,2]
[342102437,1731444445578,-500.0,0.000125,2]
[342102438,1731444445600,-37254.49570387,0.000125,2]
[342102439,1731444445621,-1000.0,0.000125,2]
[342102440,1731444445642,-1375.0,0.000125,2]
[342102441,1731444445664,-1000.0,0.000125,2]
[342102442,1731444445689,-8757.44910435,0.00012501,2]
[342102443,1731444482502,150.0,0.00012247,2]
[342102444,1731444482566,150.0,0.00012255,2]
[342102445,1731444482684,150.0,0.00012303,2]
[342102446,1731444482816,150.0,0.00012277,2]
[342102447,1731444482882,150.0,0.0001229,2]
[342102448,1731444482959,-150.0,0.00012312,2]
[342102450,1731444578557,-150.0,0.00012316,2]
[342102451,1731444608332,781.03,9.613e-05,2]
[342102452,1731444608557,781.03,0.00011877,2]
[342102466,1731444631919,-150.0,0.00012321,2]
[342102468,1731444631929,-135.29701288,0.00012324,2]
[342102470,1731444631940,-14.70298712,0.00012324,2]
[342102472,1731444631949,-483.32,0.00012329,2]
[342102474,1731444631962,-150.0,0.00012353,2]
[342102476,1731444631973,-150.0,0.00012362,2]
[342102478,1731444631982,-150.0,0.00012388,2]
[342102480,1731444631992,-1130.2754641,0.00012401,2]
[342102481,1731444632001,-150.0,0.00012408,2]
[342102483,1731444632011,-150.0,0.0001241,2]
[342102485,1731444632020,-150.0,0.00012418,2]
[342102487,1731444632029,-150.0,0.00012421,2]
[342102489,1731444632039,-150.0,0.00012437,2]
[342102491,1731444632048,-150.0,0.0001244,2]
[342102493,1731444632057,-150.0,0.00012472,2]
[342102495,1731444632067,-160.611242,0.0001248,2]
[342102497,1731444632076,-150.0,0.00012483,2]
[342102499,1731444632086,-150.0,0.00012489,2]
[342102501,1731444632095,-150.0,0.0001249,2]
[342102503,1731444632105,-160.1377742,0.00012491,2]
[342102505,1731444632114,-3097.5883375,0.00012491,2]
[342102507,1731444632123,-150.0,0.00012493,2]
[342102509,1731444632132,-150.0,0.000125,2]
[342102511,1731444632141,-37133.22325067,0.00012501,2]